bitfinex/quotes_ETHUSD_20240714
["timestamp","ask_amount","ask_price","bid_price","bid_amount"]
[1720974108229,1.63954496,3200.1,3199.7,3.28922]
[1720974108438,1.63954496,3200.1,3199.7,3.618142]
[1720974108992,1.63954496,3200.1,3199.7,2.829142]
[1720974109302,1.63954496,3200.1,3199.7,2.50022]
[1720974110442,1.63954496,3200.2,3199.7,2.50022]
[1720974110643,1.63775451,3200.2,3199.7,2.50022]
[1720974110950,2.4575,3200.3,3199.7,2.50022]
[1720974110951,1.68613412,3200.1,3199.7,2.50022]
[1720974111448,1.63775451,3200.2,3199.7,2.50022]
[1720974111841,0.04830575,3200.1,3199.7,2.50022]
[1720974112334,1.63775451,3200.2,3199.7,2.50022]
[1720974112553,0.0482743,3200.0,3199.7,2.50022]
[1720974112739,0.04832054,3200.1,3199.7,2.50022]
[1720974112940,1.63775451,3200.2,3199.7,2.50022]
[1720974113337,0.04832054,3200.1,3199.7,2.50022]
[1720974113765,1.63775451,3200.2,3199.7,2.50022]
[1720974113979,2.4575,3200.3,3199.7,2.50022]
[1720974114141,0.04832054,3200.1,3199.7,2.50022]
[1720974114337,4.09429888,3200.3,3199.7,2.50022]
[1720974114739,0.04836679,3200.2,3199.7,2.50022]
[1720974115166,1.63679888,3200.2,3199.7,2.50022]
[1720974115666,0.04830575,3200.1,3199.7,2.50022]
[1720974116029,4.09429888,3200.3,3199.7,2.50022]
[1720974116363,0.04836679,3200.2,3199.7,2.50022]
[1720974116670,4.09429888,3200.3,3199.7,2.50022]
[1720974116866,0.04832054,3200.1,3199.7,2.50022]
[1720974117171,4.09429888,3200.3,3199.7,2.50022]
[1720974117378,4.09350565,3200.3,3199.7,2.50022]
[1720974117599,0.04836679,3200.2,3199.7,2.50022]
[1720974117965,4.09327244,3200.3,3199.7,2.50022]
[1720974118348,4.09327244,3200.3,3199.9,2.50006]
[1720974118349,0.04835106,3200.2,3199.9,2.50006]
[1720974118673,0.3268607,3200.5,3200.1,3.28886]
[1720974118850,2.3156,3200.7,3200.1,3.28886]
[1720974119190,2.3156,3200.7,3200.2,2.49983]
[1720974119901,2.3156,3200.7,3200.3,2.49975]
[1720974120119,0.49046673,3200.8,3200.3,2.49975]
[1720974121873,0.04850356,3200.7,3200.1,3.28886]
[1720974122202,3.1046,3200.6,3199.9,2.50001]
[1720974122495,0.04860893,3200.5,3199.9,5.00001]
[1720974122913,0.04860893,3200.5,3200.0,2.49999]
[1720974124304,0.04860893,3200.5,3199.8,9.75511]
[1720974124509,0.04860893,3200.5,3199.9,2.50005]
[1720974127237,2.3156,3200.4,3199.9,2.50005]
[1720974127591,0.04840517,3200.3,3199.9,2.50005]
[1720974132323,0.04840517,3200.3,3199.8,2.50014]
[1720974132543,0.04840517,3200.3,3199.7,2.5002]
[1720974132743,0.04840517,3200.3,3199.7,5.00036]
[1720974132888,1.63765295,3200.3,3199.8,2.50014]
[1720974133293,0.04837363,3200.2,3199.8,2.50014]
[1720974133706,1.63767797,3200.3,3199.8,2.50014]
[1720974134231,0.04837363,3200.2,3199.8,2.50014]
[1720974134544,2.3115,3200.1,3199.6,2.50029]
[1720974134690,2.35953145,3200.1,3199.7,2.50023]
[1720974135017,3.94917797,3200.3,3199.7,5.00041]
[1720974135225,3.94917797,3200.3,3199.7,2.50018]
[1720974135841,3.95001339,3200.3,3199.7,2.50018]
[1720974136718,1.63851339,3200.2,3199.7,2.50018]
[1720974136932,1.63851339,3200.2,3199.8,2.50015]
[1720974137307,3.95001339,3200.3,3199.8,2.50015]
[1720974137512,0.04822869,3200.1,3199.8,2.50015]
[1720974137818,0.04818244,3200.0,3199.8,2.50015]
[1720974138012,1.63851339,3200.2,3199.8,2.50015]
[1720974138202,0.04822869,3200.1,3199.7,2.50018]
[1720974138405,1.63851339,3200.1,3199.7,2.50018]
[1720974139424,1.63979886,3200.1,3199.7,2.50018]
[1720974141407,2.3115,3200.0,3199.5,7.255]
[1720974141639,3.95129886,3200.0,3199.5,7.255]
[1720974142032,1.63979886,3199.9,3199.5,7.255]
[1720974142507,2.3115,3200.0,3199.5,7.255]
[1720974142706,1.64030647,3200.0,3199.6,2.50024]
[1720974142924,1.64030647,3200.0,3199.8,2.50009]
[1720974143131,1.64030647,3200.1,3199.8,2.50009]
[1720974143354,0.04811206,3199.9,3199.8,2.50009]
[1720974143652,1.64021047,3200.0,3199.8,2.50009]
[1720974143852,0.04800163,3199.9,3199.8,2.50009]
[1720974144365,1.64021047,3200.0,3199.8,2.50009]
[1720974144513,0.04809756,3199.9,3199.8,2.50009]
[1720974145228,0.04809756,3199.9,3199.7,2.50022]
[1720974145410,1.64021047,3200.0,3199.7,2.50022]
[1720974145958,2.3115,3200.3,3199.7,2.50022]
[1720974146249,1.64091217,3200.0,3199.7,2.50022]
[1720974147055,4.28059461,3200.3,3199.7,2.50022]
[1720974147056,1.64091217,3199.9,3199.7,2.50022]
[1720974147267,1.64091217,3199.9,3199.6,2.50027]
[1720974147464,1.64091217,3199.9,3199.5,8.044]
[1720974147465,3.95241217,3199.9,3199.5,7.255]
[1720974147628,1.64091217,3199.8,3199.5,7.255]
[1720974148117,1.64091217,3199.7,3199.5,7.255]
[1720974149209,2.3115,3199.9,3199.5,7.255]
[1720974149518,2.3115,3199.9,3199.4,2.50043]
[1720974149519,1.64199719,3199.7,3199.4,2.50043]
[1720974149829,1.64223622,3199.7,3199.4,2.50043]
[1720974150161,1.64223622,3199.6,3199.4,2.50043]
[1720974150342,1.64223622,3199.7,3199.4,2.50043]
[1720974150534,1.64223622,3199.6,3199.4,2.50043]
[1720974150737,1.64223622,3199.7,3199.4,2.50043]
[1720974150984,1.64223622,3199.6,3199.4,2.50043]
[1720974151334,1.64223622,3199.7,3199.4,2.50043]
[1720974151632,1.64223622,3199.7,3199.4,3.079432]
[1720974152460,2.3115,3199.9,3199.4,3.079432]
[1720974152679,2.3115,3199.9,3199.4,2.50043]
[1720974152680,1.64211824,3199.7,3199.4,2.50043]
[1720974153735,1.64211824,3199.6,3199.4,2.50043]
[1720974154164,1.64211824,3199.6,3199.2,2.50059]
[1720974154633,1.64211824,3199.5,3199.2,2.50059]
[1720974155667,0.04620997,3199.4,3199.0,2.50076]
[1720974155848,1.64207404,3199.4,3199.0,2.50072]
[1720974156161,1.64207404,3199.4,3199.1,2.5007]
[1720974156694,0.0461682,3199.3,3199.1,2.5007]
[1720974157042,0.0461682,3199.3,3199.2,2.50062]
[1720974157636,1.64207404,3199.5,3199.2,2.50062]
[1720974157871,0.04624015,3199.4,3199.3,0.789]
[1720974160684,0.53686909,3199.4,3199.3,3.28954]
[1720974163261,0.53686909,3199.4,3199.2,2.50056]
[1720974163262,3.01116909,3199.4,3199.2,2.50056]
[1720974164414,3.47639764,3199.4,3198.8,2.50087]
[1720974164561,1.64111642,3199.2,3198.8,2.50087]
[1720974164910,4.26539764,3199.4,3198.8,3.28987]
[1720974164911,0.04586628,3199.1,3198.8,3.28987]
[1720974165231,0.04586628,3199.1,3198.8,2.50087]
[1720974165394,1.64111642,3199.3,3198.8,2.50087]
[1720974165596,1.64087808,3199.3,3198.8,2.50087]
[1720974165824,0.04582512,3199.2,3198.8,2.50087]
[1720974166328,1.64087808,3199.3,3198.8,2.50087]
[1720974168722,3.43015749,3199.4,3198.8,2.50087]
[1720974168923,1.64059767,3199.3,3198.8,2.50087]
[1720974170631,2.10115033,3199.3,3198.8,2.50087]
[1720974171135,1.64059767,3199.2,3198.8,2.50087]
[1720974171636,1.64059767,3199.3,3198.8,2.50087]
[1720974171816,1.64059767,3199.2,3198.8,2.50087]
[1720974172148,1.64059767,3199.2,3198.7,7.255]
[1720974172149,2.96492894,3199.4,3198.7,7.255]
[1720974172435,1.64028882,3199.2,3198.7,7.255]
[1720974172830,1.64028882,3199.2,3198.7,9.75597]
[1720974173378,1.64028882,3199.2,3198.7,2.50097]
[1720974175059,1.64028882,3199.2,3198.6,3.29004]
[1720974175419,0.29649289,3199.3,3198.6,3.29004]
[1720974175741,1.64004468,3199.2,3198.6,3.29004]
[1720974178853,1.63988691,3199.2,3198.6,3.29004]
[1720974179024,2.96492894,3199.4,3198.6,7.849876]
[1720974179025,1.63988691,3199.3,3198.6,7.849876]
[1720974179227,2.96492894,3199.4,3198.7,2.501]
[1720974179428,1.63980363,3199.3,3198.8,2.4431]
[1720974179845,0.04575624,3199.2,3198.8,2.4431]
[1720974180154,1.63980363,3199.3,3198.8,2.4431]
[1720974180371,0.04570996,3199.1,3198.8,2.4431]
[1720974180548,2.13043257,3199.4,3199.0,0.789]
[1720974181231,2.13040428,3199.4,3199.0,0.789]
[1720974181776,0.49062894,3199.4,3199.0,0.789]
[1720974181994,1.63978162,3199.3,3199.0,0.789]
[1720974182985,1.63978162,3199.3,3199.0,4.113123]
[1720974183139,2.13041056,3199.4,3199.2,5.73272]
[1720974183333,0.49062894,3199.4,3199.2,5.73272]
[1720974184188,0.49062894,3199.4,3199.2,4.94372]
[1720974185289,2.13059671,3199.4,3199.3,2.50054]
[1720974185467,0.49062894,3199.4,3199.3,2.50054]
[1720974186174,2.13059671,3199.4,3199.3,2.50054]
[1720974186338,2.13059671,3199.4,3199.2,5.73272]
[1720974186535,2.13059671,3199.4,3199.3,2.50054]
[1720974186982,2.17629188,3199.4,3199.1,2.50067]
[1720974187198,1.64029598,3199.3,3199.1,2.50067]
[1720974187342,1.64029598,3199.3,3198.3,9.75627]
[1720974187343,2.2977,3199.2,3198.3,9.75627]
[1720974187545,1.64060473,3199.0,3198.3,9.75627]
[1720974187742,1.64066806,3199.0,3198.3,9.75627]
[1720974187988,1.64066806,3198.9,3198.3,9.75627]
[1720974188794,1.64066806,3198.9,3198.3,7.255]
[1720974189143,0.0452629,3198.8,3198.3,7.255]
[1720974189392,1.64066806,3198.9,3198.3,7.255]
[1720974189893,1.64066806,3198.8,3198.3,7.255]
[1720974191081,1.64057474,3198.9,3198.3,7.255]
[1720974191372,1.64057474,3198.9,3198.3,3.29032]
[1720974194185,2.82798934,3199.2,3198.3,3.29032]
[1720974194394,1.64073398,3198.9,3198.3,3.29032]
[1720974196088,1.64073398,3198.9,3198.3,5.79157]
[1720974197486,2.82798934,3199.2,3198.3,5.79157]
[1720974197653,1.64067448,3198.9,3198.3,5.79157]
[1720974197994,0.36169893,3199.1,3198.3,5.79157]
[1720974198159,1.6406794,3198.9,3198.3,5.79157]
[1720974198866,0.36169893,3199.1,3198.3,5.79157]
[1720974198867,1.6406794,3198.8,3198.3,5.79157]
[1720974199104,1.6406794,3198.9,3198.3,5.79157]
[1720974199280,1.6406794,3198.8,3198.4,2.50124]
[1720974199482,0.04404113,3198.7,3198.4,2.50124]
[1720974199829,1.6406794,3198.8,3198.4,2.50124]
[1720974199988,0.04399483,3198.6,3198.4,2.50124]
[1720974200186,1.6406794,3198.8,3198.4,2.50124]
[1720974200389,2.33051421,3199.1,3198.4,2.50124]
[1720974200390,0.04394854,3198.5,3198.4,2.50124]
[1720974200618,0.36169893,3199.1,3198.4,2.50124]
[1720974200619,1.64097642,3198.8,3198.4,2.50124]
[1720974200941,0.04404113,3198.7,3198.4,2.50124]
[1720974201408,1.64097466,3198.9,3198.4,2.50124]
[1720974201613,0.04399483,3198.6,3198.4,2.50124]
[1720974201808,1.64097466,3198.8,3198.4,2.50124]
[1720974201996,0.04394854,3198.5,3198.4,2.50124]
[1720974202197,1.64097466,3198.8,3198.4,2.50124]
[1720974202400,0.04394854,3198.5,3198.4,2.50124]
[1720974202616,1.64097466,3198.8,3198.4,2.50124]
[1720974202795,0.04394854,3198.5,3198.4,2.50124]
[1720974203001,1.64097466,3198.9,3198.4,2.50124]
[1720974203218,0.04394854,3198.5,3198.4,2.50124]
[1720974203418,2.2977,3199.2,3198.4,2.50124]
[1720974203631,0.04394854,3198.5,3198.4,2.50124]
[1720974203786,1.6410843,3198.8,3198.4,2.50124]
[1720974203986,0.04361417,3198.5,3198.4,2.50124]
[1720974204308,0.04355117,3198.5,3198.4,2.50124]
[1720974204513,2.47503202,3199.1,3198.2,2.50135]
[1720974204514,1.64120422,3198.7,3198.2,2.50135]
[1720974204822,0.04369151,3198.5,3198.3,2.50132]
[1720974205004,1.64120422,3198.7,3198.3,2.50132]
[1720974207523,1.64140419,3198.7,3198.3,2.50132]
[1720974209008,0.04289,3198.6,3198.3,2.50132]
[1720974209207,1.64140419,3198.7,3198.3,2.50132]
[1720974210711,1.64186138,3198.7,3198.3,2.50132]
[1720974211755,2.04876752,3198.7,3198.2,2.5014]
[1720974211912,1.64186138,3198.6,3198.2,2.5014]
[1720974214052,2.4272,3198.8,3198.2,2.5014]
[1720974214252,1.6418881,3198.6,3198.2,2.5014]
[1720974214558,1.64191751,3198.6,3198.2,2.5014]
[1720974217364,2.4272,3198.8,3198.2,2.5014]
[1720974217518,1.64200824,3198.6,3198.2,2.5014]
[1720974220617,2.4272,3198.8,3198.2,2.5014]
[1720974220818,2.13278783,3198.6,3198.2,2.5014]
[1720974222256,2.13278783,3198.6,3198.1,3.29048]
[1720974223713,2.13278783,3198.6,3198.2,2.50139]
[1720974223916,0.91238321,3198.6,3198.2,2.50139]
[1720974224164,1.64211973,3198.5,3198.2,2.50139]
[1720974224358,1.64211973,3198.4,3198.2,2.50139]
[1720974224650,1.68459542,3198.4,3198.0,10.54551]
[1720974224951,1.64211973,3198.4,3198.0,10.5455]
[1720974226644,1.64211973,3198.4,3198.2,0.789]
[1720974226972,1.64211973,3198.4,3198.3,4.86522]
[1720974227175,0.49075259,3198.6,3198.5,2.50117]
[1720974227176,2.13262095,3198.6,3198.5,2.50117]
[1720974227480,2.13264834,3198.6,3198.5,3.29017]
[1720974227778,2.17534924,3198.6,3198.5,3.29017]
[1720974228076,0.53345349,3198.6,3198.5,3.29017]
[1720974229196,2.17573019,3198.6,3198.5,3.29017]
[1720974230171,0.53345349,3198.6,3198.5,3.29017]
[1720974230610,2.17602382,3198.6,3198.5,3.29017]
[1720974230771,0.53345349,3198.6,3198.5,3.29017]
[1720974230972,2.17602441,3198.6,3198.5,3.29017]
[1720974231283,0.53345349,3198.6,3198.5,3.29017]
[1720974239926,0.0427009,3198.6,3198.5,3.29017]
[1720974240540,1.9729293,3198.7,3198.6,2.50109]
[1720974242934,1.97299782,3198.7,3198.6,2.50109]
[1720974243431,2.01419489,3198.7,3198.6,2.50109]
[1720974244333,2.01419489,3198.7,3198.6,5.581306]
[1720974244515,1.685271,3198.7,3198.6,8.006906]
[1720974244926,0.04119707,3198.7,3198.6,8.006906]
[1720974245129,1.97299782,3199.0,3198.6,3.004726]
[1720974245339,1.64400901,3198.8,3198.6,3.06724702]
[1720974245523,1.64400901,3198.8,3198.7,0.789]
[1720974246041,2.4477,3199.5,3198.7,0.789]
[1720974246042,2.4477,3199.5,3198.7,3.28997]
[1720974246213,2.30113984,3199.6,3199.5,2.50038]
[1720974246540,0.3271007,3199.7,3199.5,2.50038]
[1720974247128,0.04109645,3199.6,3199.5,2.50038]
[1720974249419,2.01168414,3199.6,3199.5,2.50038]
[1720974249836,2.50233328,3199.6,3199.5,2.50038]
[1720974250256,2.50233328,3199.6,3199.3,5.00103]
[1720974250768,2.50233328,3199.6,3199.4,2.50045]
[1720974252565,0.53174559,3199.6,3199.4,2.50045]
[1720974256266,1.64029335,3199.5,3199.4,2.50045]
[1720974256466,0.53174559,3199.6,3199.4,2.50045]
[1720974256792,1.67916662,3199.5,3199.4,2.50045]
[1720974257085,1.67916662,3199.5,3199.2,2.50056]
[1720974257086,0.28872587,3199.5,3199.2,2.50056]
[1720974257249,3.94314793,3199.4,3199.1,2.50066]
[1720974257592,1.64014793,3199.3,3199.0,2.50077]
[1720974257886,1.67886574,3199.3,3199.0,2.50077]
[1720974258250,2.10202148,3199.3,3198.8,3.28987]
[1720974258894,1.64014793,3199.2,3198.8,2.50087]
[1720974259200,2.303,3199.1,3198.8,2.50087]
[1720974259916,2.303,3199.1,3198.6,2.50107]
[1720974260085,3.94311402,3199.1,3198.6,2.50107]
[1720974260280,4.379741,3199.1,3198.6,2.50107]
[1720974260611,1.64011402,3199.0,3198.6,2.50107]
[1720974260813,1.67866563,3199.0,3198.6,2.50107]
[1720974262406,1.67866563,3199.0,3198.6,3.29007]
[1720974262609,0.03855161,3199.0,3198.6,3.29007]
[1720974262905,1.64030679,3199.0,3198.6,3.29007]
[1720974263071,1.64029666,3199.0,3198.6,3.29007]
[1720974263673,1.64031393,3199.0,3198.6,2.50107]
[1720974263895,1.97456831,3199.0,3198.6,3.29007]
[1720974264303,0.03848958,3198.9,3198.6,3.29007]
[1720974264625,1.64031393,3199.0,3198.6,3.29007]
[1720974265710,2.303,3199.1,3198.6,3.29007]
[1720974265882,1.64038262,3199.0,3198.6,3.29007]
[1720974266083,1.64038274,3199.0,3198.6,3.29007]
[1720974266678,1.64038274,3199.0,3198.8,0.789]
[1720974266875,1.64038274,3199.1,3198.9,2.50083]
[1720974267178,1.64038274,3199.2,3199.0,0.789]
[1720974267918,1.96845928,3199.5,3199.2,2.50062]
[1720974269318,1.96822891,3199.5,3199.2,2.50062]
[1720974269512,1.64019509,3199.3,3199.2,2.50062]
[1720974270216,1.96822891,3199.5,3199.2,2.50062]
[1720974270393,1.64025562,3199.3,3199.2,2.50062]
[1720974270788,1.64024357,3199.3,3199.2,2.50062]
[1720974271414,1.67891614,3199.3,3199.2,2.50062]
[1720974272196,0.03867257,3199.3,3199.2,2.50062]
[1720974272398,1.96822891,3199.5,3199.2,2.50062]
[1720974272593,0.03864527,3199.3,3199.2,2.50062]
[1720974272831,2.24725448,3199.5,3199.2,2.50062]
[1720974273139,0.03864527,3199.3,3199.2,2.50062]
[1720974273298,2.24725448,3199.5,3199.2,2.50062]
[1720974273835,0.03867673,3199.4,3199.2,2.50062]
[1720974275711,2.4641,3199.3,3199.2,2.50062]
[1720974276934,2.4641,3199.3,3199.0,5.79042]
[1720974277129,1.64086066,3199.2,3199.0,3.28971]
[1720974277337,1.64086066,3199.1,3199.0,3.28971]
[1720974277522,1.64086066,3199.1,3199.0,0.789]
[1720974277832,1.64086066,3199.1,3198.8,5.79077]
[1720974278235,1.64086066,3199.1,3198.8,3.28987]
[1720974278609,0.03849166,3199.0,3198.8,3.28987]
[1720974280116,1.64122064,3199.1,3198.8,3.28987]
[1720974280319,1.64122064,3199.0,3198.8,2.50087]
[1720974280556,1.6797271,3199.0,3198.8,2.50087]
[1720974281035,0.03850646,3199.0,3198.8,2.50087]
[1720974281407,0.03850646,3199.0,3198.9,0.789]
[1720974282337,0.03850646,3199.0,3198.9,3.28985]
[1720974282722,1.68007152,3199.0,3198.9,3.28985]
[1720974282922,1.64156506,3199.1,3198.9,3.28985]
[1720974283102,1.64156506,3199.0,3198.9,0.789]
[1720974283461,1.68006418,3199.0,3198.9,0.789]
[1720974284142,1.68006418,3199.0,3198.9,3.28985]
[1720974285853,0.03849912,3199.0,3198.9,3.28985]
[1720974286010,1.64205649,3199.0,3198.9,3.28985]
[1720974286203,1.68022541,3199.0,3198.9,3.28985]
[1720974286740,1.68022541,3199.0,3198.9,6.305422]
[1720974289157,1.6806182,3199.0,3198.9,6.305422]
[1720974290268,1.6806182,3199.0,3198.9,8.806272]
[1720974290582,0.03816892,3199.0,3198.9,8.806272]
[1720974292622,1.64293705,3199.1,3199.0,5.00156]
[1720974292961,1.9715259,3199.4,3199.3,2.50053]
[1720974293755,2.00925103,3199.4,3199.3,2.50053]
[1720974296058,0.03772513,3199.4,3199.3,2.50053]
[1720974297881,0.03772513,3199.4,3199.3,5.00107]
[1720974301278,2.46213003,3199.6,3199.4,2.50039]
[1720974301502,0.49064914,3199.6,3199.4,2.50039]
[1720974301796,1.97148839,3199.5,3199.4,2.50039]
[1720974301995,1.97148839,3199.5,3199.4,5.78985]
[1720974302284,2.46213753,3199.6,3199.5,5.00078]
[1720974302450,0.49064914,3199.6,3199.5,5.00078]
[1720974304448,0.52836235,3199.6,3199.5,5.00078]
[1720974306883,0.52836235,3199.6,3199.5,2.50039]
[1720974309148,0.52836235,3199.6,3199.3,2.50049]
[1720974309349,1.64202815,3199.4,3199.3,2.50049]
[1720974309549,4.10202815,3199.4,3199.1,5.00129]
[1720974309749,1.64202815,3199.3,3199.2,2.50062]
[1720974310183,1.67940445,3199.3,3199.2,2.50062]
[1720974310361,1.67940445,3199.3,3199.1,2.50063]
[1720974310696,1.64202815,3199.3,3199.1,2.50063]
[1720974310850,1.64226539,3199.2,3199.1,2.50063]
[1720974311055,1.67951271,3199.2,3199.1,2.50063]
[1720974311289,1.67958771,3199.2,3199.1,2.50063]
[1720974311583,1.67958771,3199.2,3198.9,2.50084]
[1720974311584,2.17027636,3199.2,3198.9,2.50084]
[1720974311784,2.17027636,3199.2,3199.0,2.50075]
[1720974312002,2.17027636,3199.2,3199.0,3.28975]
[1720974312187,1.64234039,3199.1,3199.0,3.28975]
[1720974312392,1.67954165,3199.1,3199.0,3.28975]
[1720974314410,4.13954165,3199.1,3198.9,2.50084]
[1720974314700,1.64256849,3199.0,3198.9,0.789]
[1720974315011,0.03710533,3199.0,3198.9,3.28985]
[1720974315305,0.03710533,3199.0,3198.9,3.618846]
[1720974317071,0.03710533,3199.0,3198.9,6.119696]
[1720974317383,0.03710533,3199.0,3198.9,6.669696]
[1720974317711,2.13325714,3199.2,3199.1,5.0014]
[1720974317906,2.1331535,3199.2,3199.1,5.7904]
[1720974318112,0.49068865,3199.2,3199.1,5.7904]
[1720974318921,2.13315898,3199.2,3199.1,5.7904]
[1720974319115,0.49068865,3199.2,3199.1,5.7904]
[1720974320113,2.13317228,3199.2,3199.1,5.7904]
[1720974320294,2.13317228,3199.2,3199.1,6.4573396]
[1720974320706,0.49068865,3199.2,3199.1,6.4573396]
[1720974320890,2.13320399,3199.2,3199.1,5.7904]
[1720974321095,0.49068865,3199.2,3199.1,5.7904]
[1720974321293,2.13319397,3199.2,3199.1,5.7904]
[1720974321506,0.52785606,3199.2,3199.1,5.7904]
[1720974321704,2.13320787,3199.2,3199.1,5.7904]
[1720974321901,2.17037528,3199.2,3199.1,5.7904]
[1720974322717,0.52785606,3199.2,3199.1,5.7904]
[1720974323212,2.17043632,3199.2,3199.1,5.7904]
[1720974323389,0.52785606,3199.2,3199.1,5.7904]
[1720974324212,0.49068865,3199.2,3199.1,3.2897]
[1720974324417,2.98698926,3199.2,3199.1,3.2897]
[1720974324825,2.95068865,3199.2,3199.1,3.2897]
[1720974324984,2.98698926,3199.2,3199.1,3.2897]
[1720974325184,2.98698926,3199.2,3198.9,3.05081]
[1720974325185,2.98698926,3199.2,3198.9,3.28981]
[1720974325407,1.6427148,3199.0,3198.9,3.28981]
[1720974325714,1.67893653,3199.0,3198.9,3.28981]
[1720974325891,1.67893653,3199.0,3198.9,2.50081]
[1720974326212,1.67893653,3199.0,3198.7,2.501]
[1720974326213,2.46,3198.9,3198.7,2.501]
[1720974326390,1.6429178,3198.8,3198.7,2.501]
[1720974327025,1.6429178,3198.8,3198.5,0.789]
[1720974327202,1.6429178,3198.7,3198.5,0.789]
[1720974327901,1.64288391,3198.7,3198.5,3.29016]
[1720974331095,1.64234555,3198.7,3198.5,3.29016]
[1720974332199,2.46,3198.9,3198.5,3.29016]
[1720974332200,1.64234555,3198.8,3198.5,3.29016]
[1720974332822,1.64234555,3198.7,3198.5,3.29016]
[1720974333020,1.64234555,3198.8,3198.5,3.29016]
[1720974333425,2.05258011,3198.8,3198.3,2.50131]
[1720974333583,1.64234555,3198.7,3198.3,0.789]
[1720974334012,1.64234555,3198.6,3198.3,0.789]
[1720974334384,1.64182718,3198.6,3198.3,0.789]
[1720974334823,1.64184751,3198.5,3198.3,0.789]
[1720974335191,1.64184751,3198.6,3198.3,0.789]
[1720974336232,2.3877,3198.5,3198.3,0.789]
[1720974336413,4.02954751,3198.5,3198.1,19.94]
[1720974336715,1.64184751,3198.3,3198.1,19.94]
[1720974337001,1.64184751,3198.3,3197.9,2.5016]
[1720974337196,0.03404367,3198.2,3197.9,2.5016]
[1720974337401,1.64184751,3198.3,3197.9,2.5016]
[1720974337621,0.03404367,3198.2,3197.9,2.5016]
[1720974337813,1.64093741,3198.3,3197.9,2.5016]
[1720974338215,1.64093741,3198.4,3197.9,2.5016]
[1720974338415,0.03408998,3198.3,3197.9,2.5016]
[1720974340332,2.3877,3198.2,3197.8,3.29066]
[1720974342097,2.3877,3198.2,3197.8,0.789]
[1720974345213,2.3877,3198.2,3198.0,0.789]
[1720974345416,2.3877,3198.5,3198.0,0.789]
[1720974345641,4.02659919,3198.5,3198.0,0.789]
[1720974345843,0.03439124,3198.4,3198.0,0.789]
[1720974348140,2.79035992,3198.5,3198.0,0.789]
[1720974348510,4.42851964,3198.5,3198.0,0.789]
[1720974348710,0.03444889,3198.4,3198.0,0.789]
[1720974350349,0.03444889,3198.4,3198.0,3.29056]
[1720974350548,0.03444889,3198.4,3198.2,0.789]
[1720974350751,0.03444889,3198.4,3198.2,3.29039]
[1720974351061,1.63802848,3198.6,3198.2,3.29039]
[1720974351440,0.03446156,3198.5,3198.2,3.29039]
[1720974353356,0.03446156,3198.5,3198.2,2.50139]
[1720974355065,1.67269885,3198.5,3198.0,3.2905]
[1720974355367,2.08085874,3198.5,3198.0,2.5015]
[1720974355544,2.08085874,3198.5,3198.1,2.50148]
[1720974355862,0.44262145,3198.5,3198.1,2.50148]
[1720974356065,0.03446156,3198.5,3198.1,2.50148]
[1720974356229,1.67269885,3198.5,3198.1,2.50148]
[1720974357363,0.03446156,3198.5,3198.1,2.50148]
[1720974357664,1.63864575,3198.5,3198.1,2.50148]
[1720974357828,0.03440512,3198.4,3198.1,2.50148]
[1720974360923,1.6388417,3198.5,3198.1,2.50148]
[1720974361227,0.03438148,3198.4,3198.1,2.50148]
[1720974363453,1.63913274,3198.5,3198.1,2.50148]
[1720974363642,0.03441135,3198.4,3198.1,2.50148]
[1720974364244,1.63916324,3198.5,3198.1,2.50148]
[1720974364439,0.03441135,3198.4,3198.1,2.50148]
[1720974365268,1.67357459,3198.4,3198.1,2.50148]
[1720974366069,0.03441135,3198.4,3198.1,2.50148]
[1720974366363,1.67357459,3198.4,3198.1,2.50148]
[1720974366671,1.67421099,3198.4,3198.1,2.50148]
[1720974367649,1.67421099,3198.4,3198.2,2.50139]
[1720974369975,1.64085454,3198.3,3198.2,2.50139]
[1720974370382,1.67462663,3198.3,3198.2,2.50139]
[1720974371881,2.16545207,3198.3,3198.2,2.50139]
[1720974372256,0.52459753,3198.3,3198.2,2.50139]
[1720974376763,0.49082544,3198.3,3198.2,2.50139]
[1720974377401,0.52459751,3198.3,3198.2,2.50139]
[1720974380175,2.49755517,3198.3,3198.2,2.50139]
[1720974382698,0.52459751,3198.3,3198.2,2.50139]
[1720974396342,2.49847857,3198.3,3198.2,2.50139]
[1720974396706,2.49847936,3198.3,3198.2,2.50139]
[1720974397547,2.49848285,3198.3,3198.2,2.50139]
[1720974400811,0.52459751,3198.3,3198.2,2.50139]
[1720974401108,2.49847792,3198.3,3198.2,2.50139]
[1720974402831,2.49847792,3198.3,3198.2,3.001679]
[1720974403051,0.52459751,3198.3,3198.2,6.292079]
[1720974403265,2.16934843,3198.3,3198.2,6.292079]
[1720974403576,0.52459751,3198.3,3198.2,6.292079]
[1720974403721,2.16934843,3198.3,3198.2,6.292079]
[1720974404164,2.16902248,3198.3,3198.2,6.292079]
[1720974404369,2.16882617,3198.3,3198.2,6.292079]
[1720974404723,0.52459751,3198.3,3198.2,6.292079]
[1720974405353,0.52459751,3198.3,3198.2,5.00279]
[1720974406326,0.52459751,3198.3,3198.2,2.50139]
[1720974406567,2.85599751,3198.3,3198.2,2.50139]
[1720974408652,0.52459751,3198.3,3198.2,2.50139]
[1720974415282,0.52459751,3198.3,3198.1,2.50146]
[1720974417771,0.03250749,3198.2,3198.1,2.50146]
[1720974418067,0.49082544,3198.3,3198.1,2.50146]
[1720974418294,0.03250749,3198.2,3198.1,2.50146]
[1720974418635,0.49082544,3198.3,3198.1,2.50146]
[1720974418965,0.03250749,3198.2,3198.1,2.50146]
[1720974419169,0.49082544,3198.3,3198.1,2.50146]
[1720974419474,0.03250749,3198.2,3198.1,2.50146]
[1720974420165,0.49082544,3198.3,3198.1,2.50146]
[1720974420476,0.03250749,3198.2,3198.1,2.50146]
[1720974420837,0.49082544,3198.3,3198.1,2.50146]
[1720974421370,0.03250749,3198.2,3198.1,2.50146]
[1720974421567,0.49082544,3198.3,3198.1,2.50146]
[1720974421773,0.03250749,3198.2,3198.1,3.29046]
[1720974422071,0.49082544,3198.3,3198.1,3.29046]
[1720974422242,0.03250749,3198.2,3198.1,3.29046]
[1720974422642,0.49082544,3198.3,3198.1,3.29046]